lending/lending_fUSD_20260312
["ID","MTS","AMOUNT","RATE_DAILY","PERIOD"]
[408245180,1773305442117,-1143.00513,0.0001995,2]
[408245181,1773305442126,-421.01419753,0.00019953,2]
[408245182,1773305442134,-500.0,0.00019973,2]
[408245183,1773305442143,-69.84697637,0.00019973,2]
[408245184,1773305442155,-81.63775072,0.00019973,2]
[408245185,1773305442167,-151.0,0.00019975,2]
[408245186,1773305442177,-151.0,0.00019975,2]
[408245187,1773305442186,-151.0,0.00019975,2]
[408245188,1773305442195,-174.53224712,0.00019975,2]
[408245189,1773305442204,-152.0,0.00019975,2]
[408245190,1773305442214,-52.19739703,0.0001999,2]
[408245191,1773305442251,-127.5369725,0.0001999,2]
[408245192,1773305442261,-179.73436953,0.0001999,2]
[408245193,1773305442272,-151.0,0.00019997,2]
[408245194,1773305442281,-156.235,0.00019999,2]
[408245195,1773305442290,-1036.0,0.0002,2]
[408245196,1773305442299,-555.2086143,0.0002,2]
[408245200,1773305442680,-151.0,0.000199,2]
[408245201,1773305442689,-766.7913857,0.0002,2]
[408245202,1773305442698,-1244.0,0.0002,2]
[408245203,1773305442707,-500.0,0.0002,2]
[408245204,1773305442717,-500.0,0.0002,2]
[408245205,1773305442727,-500.0,0.0002,2]
[408245206,1773305442736,-591.0,0.0002,2]
[408245207,1773305442745,-300.0,0.0002,2]
[408245208,1773305442753,-500.0,0.0002,2]
[408245209,1773305442763,-500.0,0.0002,2]
[408245210,1773305442773,-500.0,0.0002,2]
[408245211,1773305442782,-165.1294434,0.0002,2]
[408245212,1773305442791,-13317.86269341,0.0002,2]
[408245213,1773305442835,-21.98769651,0.0002,2]
[408245216,1773305445974,-350.463379,0.000199,2]
[408245217,1773305445984,-350.463379,0.000199,2]
[408245218,1773305445993,-4812.17744266,0.0002,2]
[408245219,1773305446003,-3239.65693771,0.0002,2]
[408245220,1773305446026,-4569.8035,0.0002,2]
[408245221,1773305446036,-475.0344,0.0002,2]
[408245222,1773305446133,-926.26279466,0.0002,2]
[408245223,1773305446275,-21764.96559823,0.0002,2]
[408245224,1773305455483,504.0,0.00017,2]
[408245225,1773305457836,200.0,0.00017696,2]
[408245229,1773305604320,200.0,0.00017696,2]
[408245230,1773305660353,248.57,0.00017696,2]
[408245232,1773305809975,166.66,0.00017908,2]
[408245233,1773305817287,165.79,9.461e-05,2]
[408245234,1773305817504,124.41130682,0.00010643,2]
[408245235,1773305817532,41.37869318,0.00010643,2]
[408245236,1773305817704,165.79,0.00011826,2]
[408245237,1773305817905,165.79,0.00013008,2]
[408245238,1773305818115,165.79,0.00014191,2]
[408245247,1773306013887,1603.95125611,0.000144,2]
[408245248,1773306041321,-165.79,0.00015373,2]
[408245249,1773306041354,-1443.4854792,0.00015669,2]
[408245250,1773306041384,-300.0,0.00015965,2]
[408245251,1773306041413,-1440.29,0.00016181,2]
[408245252,1773306041444,-1200.0,0.00016508,2]
[408245253,1773306041473,-300.0,0.00016508,2]
[408245254,1773306041612,-249.46621933,0.00016509,2]
[408245255,1773306041664,-2250.53378067,0.00016509,2]
[408245256,1773306041692,-2500.0,0.00016509,2]
[408245257,1773306041742,-498.94243866,0.00016509,2]
[408245258,1773306044279,-2001.05756134,0.00016509,2]
[408245259,1773306044308,-2500.0,0.00016509,2]
[408245260,1773306044339,-165.79,0.00016556,2]
[408245261,1773306044373,-166.31487732,0.000168,2]
[408245262,1773306044437,-333.68512268,0.000168,2]
[408245263,1773306047272,-500.0,0.000168,2]
[408245264,1773306047303,-388.60866893,0.000168,2]
[408245265,1773306047330,-550.0,0.0001691,2]
[408245266,1773306054194,5000.00940716,0.000162,5]
[408245267,1773306146792,5456.71946374,0.00016,2]
[408245269,1773306154171,4543.29053626,9.5e-05,3]
[408245270,1773306154196,38498.48994018,9.5e-05,3]
[408245272,1773306161482,501.84769385,0.0002,120]
[408245277,1773306564115,-1321.47924996,0.000167,2]
[408245291,1773306631674,-759.90311907,0.000167,2]
[408245292,1773306631727,-253.91423836,0.000167,2]
[408245293,1773306631784,-1732.03464772,0.000167,2]
[408245294,1773306631794,-291.0,0.000167,2]
[408245295,1773306631803,-500.0,0.00016973,2]
[408245296,1773306631812,-943.75488012,0.0001699,2]
[408245297,1773306631820,-250.0,0.00016994,2]
[408245298,1773306631830,-1002.24583529,0.00016998,2]
[408245299,1773306631839,-300.0,0.00016998,2]
[408245300,1773306631849,-1200.0,0.00016998,2]
[408245301,1773306631858,-10347.50024516,0.00016999,2]
[408245302,1773306631869,-31532.20416077,0.00016999,2]
[408245303,1773306631878,-150.0,0.00016999,2]
[408245304,1773306631887,-33415.23663334,0.00017,2]
[408245305,1773306631897,-513.0,0.00017,2]
[408245306,1773306631906,-6020.22020574,0.000171,2]
[408245307,1773306631915,-4000.0,0.00017205,2]
[408245308,1773306631925,-391.726658,0.00017523,7]
[408245309,1773306631937,-4000.0,0.00017635,2]
[408245310,1773306631956,-398.98606533,0.00017675,2]
[408245312,1773306631968,-27.75881677,0.00017675,2]
[408245313,1773306631977,-500.0,0.00017675,2]
[408245314,1773306631986,-165.79,0.00017739,2]
[408245315,1773306631995,-149.78827296,0.00017739,2]
[408245316,1773306632006,-253.8209281,0.00017739,2]
[408245317,1773306632015,-2306.78705937,0.00017755,2]
[408245318,1773306632027,-15277.19945745,0.00017755,2]
[408245319,1773306632036,-500.0,0.00017775,2]
[408245320,1773306632045,-679.0,0.00017802,2]
[408245321,1773306632055,-1999.0,0.00017808,2]
[408245322,1773306632064,-800.0,0.00017808,2]
[408245323,1773306632073,-1148.1,0.00017842,2]
[408245324,1773306632082,-164.0,0.00017899,2]
[408245325,1773306632092,-859.59086346,0.000179,2]
[408245326,1773306632100,-859.59086345,0.000179,2]
[408245327,1773306632109,-859.59086345,0.000179,2]
[408245328,1773306632119,-859.59086345,0.000179,2]
[408245329,1773306632127,-151.0,0.00017908,2]
[408245330,1773306632137,-246.16388544,0.00017908,2]
[408245331,1773306632146,-823.0,0.0001792,2]
[408245332,1773306632156,-917.0,0.00017956,2]
[408245333,1773306632165,-259.0,0.00018014,2]
[408245334,1773306632175,-656.0,0.00018034,2]
[408245335,1773306632185,-4000.0,0.00018065,2]
[408245336,1773306632194,-152.73,0.00018189,2]
[408245337,1773306632203,-2724.05,0.00018189,2]
[408245338,1773306632212,-561.03,0.000182,2]
[408245339,1773306632222,-166.66,0.00018285,2]
[408245340,1773306632231,-150.0,0.00018337,2]
[408245341,1773306632240,-249.192552,0.00018339,2]
[408245342,1773306632252,-200.0,0.00018345,2]
[408245343,1773306632262,-150.0,0.00018355,2]
[408245344,1773306632271,-500.0,0.00018356,7]
[408245345,1773306632279,-31393.46255515,0.00018356,2]
[408245346,1773306632307,-14106.39744485,0.00018356,2]
[408245347,1773306632315,-600.0,0.0001837,2]
[408245348,1773306632324,-300.0,0.0001837,2]
[408245349,1773306632333,-250.0,0.0001837,2]
[408245350,1773306632342,-411.91,0.00018412,2]
[408245351,1773306632351,-345.834663,0.00018445,7]
[408245352,1773306632360,-152.0,0.00018457,3]
[408245353,1773306632370,-500.0,0.00018458,3]
[408245354,1773306632379,-4000.0,0.00018495,2]
[408245355,1773306632388,-5181.86621281,0.00018501,2]
[408245356,1773306632397,-9211.34798985,0.00018524,2]
[408245357,1773306632406,-500.0,0.00018524,2]
[408245358,1773306632415,-363.10053508,0.00018532,2]
[408245359,1773306632424,-151.0,0.00018533,2]
[408245360,1773306632433,-151.0,0.00018533,2]
[408245361,1773306632442,-151.0,0.00018533,2]
[408245362,1773306632451,-315.417041,0.00018533,2]
[408245363,1773306632460,-315.417041,0.00018533,2]
[408245364,1773306632468,-151.0,0.00018533,2]
[408245365,1773306632477,-151.0,0.00018533,2]
[408245366,1773306632486,-151.0,0.00018533,2]
[408245367,1773306632497,-151.0,0.00018533,2]
[408245368,1773306632508,-513.50002,0.00018533,2]
[408245369,1773306632519,-513.50002,0.00018533,2]
[408245370,1773306632528,-513.50002,0.00018533,2]
[408245371,1773306632538,-513.50002,0.00018533,2]
[408245372,1773306632547,-198.143456,0.00018533,2]
[408245373,1773306632556,-198.143456,0.00018533,2]
[408245374,1773306632565,-198.143456,0.00018533,2]
[408245375,1773306632575,-592.689359,0.00018533,2]
[408245376,1773306632583,-198.143456,0.00018533,2]
[408245377,1773306632592,-592.689359,0.00018533,2]
[408245378,1773306632601,-592.689359,0.00018533,2]
[408245379,1773306632610,-592.689359,0.00018533,2]
[408245380,1773306632619,-151.0,0.00018533,2]
[408245381,1773306632628,-500.0,0.00018533,2]
[408245382,1773306632638,-150.99,0.00018533,2]
[408245383,1773306632647,-9999.99,0.00018533,2]
[408245384,1773306632656,-3297.12,0.00018533,2]
[408245385,1773306632665,-499.99,0.00018533,2]
[408245386,1773306632674,-562.03,0.00018533,2]
[408245387,1773306632684,-999.99,0.00018533,2]
[408245388,1773306632693,-150.99,0.00018533,2]
[408245389,1773306632702,-9999.99,0.00018533,2]
[408245390,1773306632711,-14168.85519585,0.00018533,2]
[408245391,1773306632722,-644.71052742,0.00018533,2]
[408245392,1773306632733,-3495.74484,0.00018533,2]
[408245393,1773306632744,-1217.40443236,0.00018533,2]
[408245395,1773306637783,-1050.0,0.00018459,2]
[408245396,1773306637794,-694.52436558,0.00018459,2]
[408245397,1773306637805,-1555.7000002,0.00018459,2]
[408245398,1773306637838,-968.12794408,0.00018459,2]
[408245399,1773306637895,-916.51199559,0.00018459,2]
[408245400,1773306637910,-513.22493665,0.00018459,2]
[408245401,1773306637920,-238.72578985,0.00018533,2]
[408245402,1773306637930,-248.0492735,0.00018533,2]
[408245417,1773306640053,-35.8260635,0.00018533,2]
[408245418,1773306640063,-283.875337,0.00018533,2]
[408245419,1773306640073,-283.875337,0.00018533,2]
[408245420,1773306640082,-19396.17827147,0.00018533,2]
[408245421,1773306640214,-151.0,0.00018533,2]
[408245422,1773306640224,-157.67861533,0.00018533,2]
[408245423,1773306640235,-3343.91811757,0.00018533,2]
[408245424,1773306640245,-705.23,0.00018533,2]
[408245425,1773306640254,-9999.99,0.00018533,2]
[408245426,1773306640263,-21456.73524553,0.00018533,2]
[408245427,1773306640274,-3545.97475447,0.00018533,2]
[408245428,1773306640283,-1207.52,0.00018533,2]
[408245429,1773306640292,-289.99069694,0.00018573,2]
[408245430,1773306640301,-281.70845704,0.00018579,2]
[408245431,1773306640311,-5000.0,0.00018601,2]
[408245432,1773306640321,-195.0,0.00018601,2]
[408245433,1773306640330,-200.0,0.00018601,2]
[408245434,1773306640339,-504.12406737,0.00018628,2]
[408245435,1773306640348,-500.0,0.00018628,2]
[408245436,1773306640357,-500.0,0.00018628,2]
[408245437,1773306640366,-683.0,0.00018658,2]
[408245438,1773306640375,-166.66,0.00018662,2]
[408245439,1773306640384,-2500.0,0.00018689,2]
[408245440,1773306640394,-250.0,0.00018689,2]
[408245441,1773306640403,-348.43,0.00018711,2]
[408245442,1773306640413,-500.0,0.00018732,3]
[408245443,1773306640423,-4218.72909817,0.00018775,2]
[408245444,1773306640434,-2739.13899999,0.00018775,2]
[408245445,1773306640446,-717.99212797,0.00018775,2]
[408245446,1773306640455,-481.41,0.00018886,2]
[408245447,1773306640464,-481.41,0.00018886,2]
[408245448,1773306640474,-413.81233853,0.00018886,2]
[408245449,1773306640485,-67.6222127,0.00018886,2]
[408245450,1773306640495,-200.0,0.00018893,2]
[408245451,1773306640508,-782.52338412,0.00018904,2]
[408245452,1773306640518,-151.0,0.00018921,2]
[408245453,1773306640529,-151.0,0.00018921,2]
[408245454,1773306640539,-151.0,0.00018921,2]
[408245455,1773306640548,-151.0,0.00018921,2]
[408245456,1773306640557,-513.50002,0.00018921,2]
[408245457,1773306640566,-513.50002,0.00018921,2]
[408245458,1773306640576,-513.50002,0.00018921,2]
[408245459,1773306640585,-513.50002,0.00018921,2]
[408245460,1773306640594,-198.143456,0.00018921,2]
[408245461,1773306640603,-198.143456,0.00018921,2]
[408245462,1773306640612,-198.143456,0.00018921,2]
[408245463,1773306640622,-592.689359,0.00018921,2]
[408245464,1773306640631,-198.143456,0.00018921,2]
[408245465,1773306640641,-592.689359,0.00018921,2]
[408245467,1773306640651,-592.689359,0.00018921,2]
[408245469,1773306640660,-592.689359,0.00018921,2]
[408245471,1773306640669,-151.0,0.00018921,2]
[408245473,1773306640679,-283.875337,0.00018921,2]
[408245475,1773306640688,-283.875337,0.00018921,2]
[408245477,1773306640697,-283.875337,0.00018921,2]
[408245479,1773306640706,-5876.98607329,0.00018921,2]
[408245481,1773306640737,-597.032921,0.0001827,2]
[408245492,1773306645755,-3247.5716009,0.0001827,2]
[408245493,1773306645767,-4376.1377965,0.0001827,2]
[408245494,1773306645777,-283.875337,0.00018533,2]
[408245495,1773306645787,-151.0,0.00018533,2]
[408245496,1773306645796,-151.0,0.00018921,2]
[408245497,1773306645806,-283.875337,0.00018921,2]
[408245498,1773306645815,-151.0,0.00018921,2]
[408245499,1773306645825,-30386.31392671,0.00018921,2]
[408245500,1773306645834,-165.79,0.00018921,2]
[408245501,1773306645843,-4000.0,0.00018925,2]
[408245502,1773306645852,-151.0,0.0001896,2]
[408245503,1773306645861,-151.0,0.0001896,2]
[408245504,1773306645870,-1246.84,0.0001896,2]
[408245505,1773306645879,-166.66,0.00019039,2]
[408245506,1773306645888,-350.0,0.00019056,2]
[408245507,1773306645898,-263.07360147,0.00019075,2]
[408245508,1773306645907,-10969.17231024,0.00019078,2]
[408245509,1773306645917,-542.027702,0.00019178,2]
[408245510,1773306645926,-542.027702,0.00019178,2]
[408245511,1773306645935,-542.027702,0.00019178,2]
[408245512,1773306645944,-542.027702,0.00019178,2]
[408245513,1773306645953,-542.027702,0.00019178,2]
[408245514,1773306645963,-542.027702,0.00019178,2]
[408245515,1773306645972,-542.027702,0.00019178,2]
[408245516,1773306645982,-542.027702,0.00019178,2]
[408245517,1773306645991,-151.0,0.00019178,2]
[408245518,1773306646001,-151.0,0.00019178,2]
[408245519,1773306646010,-151.0,0.00019178,2]
[408245520,1773306646019,-276.849716,0.00019178,2]
[408245521,1773306646028,-186.544697,0.00019178,2]
[408245522,1773306646037,-167.039177,0.00019178,2]
[408245523,1773306646045,-151.0,0.00019178,2]
[408245524,1773306646054,-151.0,0.00019178,2]
[408245525,1773306646063,-14197.644999,0.00019199,2]
[408245526,1773306646073,-870.6263244,0.00019199,2]
[408245527,1773306646081,-1000.0,0.000192,2]
[408245528,1773306646091,-1343.0,0.00019213,2]
[408245529,1773306646100,-151.0,0.00019266,2]
[408245530,1773306646109,-436.06752617,0.00019266,2]
[408245531,1773306646118,-806.00093593,0.00019408,2]
[408245532,1773306646127,-166.66,0.00019416,2]
[408245533,1773306646136,-200.0,0.00019441,2]
[408245534,1773306646145,-1280.0,0.00019464,2]
[408245535,1773306646155,-151.0,0.00019464,2]
[408245536,1773306646163,-164.912808,0.00019464,2]
[408245537,1773306646172,-922.0,0.00019464,2]
[408245538,1773306646181,-131.91582248,0.00019464,2]
[408245539,1773306646192,-1081.08417752,0.00019464,2]
[408245540,1773306646201,-899.88537262,0.00019464,2]
[408245541,1773306646212,-599.13162738,0.00019464,2]
[408245542,1773306646221,-584.58870303,0.00019464,2]
[408245543,1773306646232,-1277.80568241,0.00019464,2]
[408245544,1773306646243,-264.49836615,0.00019464,2]
[408245549,1773306646282,-726.16397685,0.00019464,2]
[408245552,1773306646292,-3141.94327156,0.00019464,2]
[408245553,1773306646302,-414.0,0.00019464,2]
[408245554,1773306646311,-699.0,0.00019594,2]
[408245555,1773306646320,-168.0,0.00019602,2]
[408245556,1773306646329,-3566.008,0.000197,2]
[408245557,1773306646338,-175.259,0.000197,2]
[408245558,1773306646347,-1500.04906871,0.00019719,2]
[408245559,1773306646358,-706.01949435,0.00019719,2]
[408245560,1773306646377,-8763.10374714,0.00019719,2]
[408245561,1773306646386,-164.205873,0.00019719,2]
[408245562,1773306646395,-198.143456,0.00019721,2]
[408245563,1773306646404,-198.143456,0.00019721,2]
[408245564,1773306646413,-198.143456,0.00019721,2]
[408245565,1773306646422,-592.689359,0.00019721,2]
[408245566,1773306646431,-198.143456,0.00019721,2]
[408245567,1773306646440,-592.689359,0.00019721,2]
[408245568,1773306646449,-592.689359,0.00019721,2]
[408245570,1773306646459,-592.689359,0.00019721,2]
[408245572,1773306646468,-150.0,0.00019726,2]
[408245574,1773306646477,-154.81144143,0.00019726,2]
[408245576,1773306646485,-150.0,0.00019726,2]
[408245577,1773306646494,-150.0,0.00019726,2]
[408245578,1773306646506,-150.0,0.00019726,2]
[408245579,1773306646515,-150.0,0.00019726,2]
[408245580,1773306646524,-156.77659394,0.00019726,2]
[408245581,1773306646533,-150.0,0.00019726,2]
[408245582,1773306646544,-150.0,0.00019726,2]
[408245583,1773306646554,-150.0,0.00019726,2]
[408245584,1773306646563,-150.0,0.00019726,2]
[408245586,1773306646572,-150.0,0.00019726,2]
[408245588,1773306646582,-150.0,0.00019726,2]
[408245590,1773306646591,-273.53962329,0.00019726,2]
[408245592,1773306646600,-150.0,0.00019726,2]
[408245594,1773306646609,-150.0,0.00019726,2]
[408245596,1773306646618,-150.0,0.00019726,2]
[408245598,1773306646627,-150.0,0.00019726,2]
[408245600,1773306646636,-150.0,0.00019726,2]
[408245602,1773306646645,-150.0,0.00019726,2]
[408245604,1773306646654,-150.0,0.00019726,2]
[408245606,1773306646664,-150.0,0.00019726,2]
[408245608,1773306646673,-150.0,0.00019726,2]
[408245609,1773306646682,-150.0,0.00019726,2]
[408245611,1773306646691,-150.0,0.00019726,2]
[408245613,1773306646701,-150.0,0.00019726,2]
[408245615,1773306646710,-500.0,0.00019726,2]
[408245617,1773306646719,-150.0,0.00019726,2]
[408245619,1773306646728,-150.0,0.00019726,2]
[408245621,1773306646737,-500.0,0.00019726,2]
[408245623,1773306646746,-150.0,0.00019726,2]
[408245626,1773306646755,-177.99151511,0.00019726,2]
[408245628,1773306646766,-150.0,0.00019726,2]
[408245630,1773306646775,-150.0,0.00019726,2]
[408245632,1773306646784,-150.0,0.00019726,2]
[408245634,1773306646794,-500.0,0.00019726,2]
[408245636,1773306646803,-150.0,0.00019726,2]
[408245637,1773306646812,-150.0,0.00019726,2]
[408245639,1773306646821,-500.0,0.00019726,2]
[408245641,1773306646830,-482.0,0.00019726,2]
[408245643,1773306646839,-150.0,0.00019726,2]
[408245645,1773306646848,-11460.8649,0.00019735,2]
[408245646,1773306646856,-151.0,0.00019735,2]
[408245647,1773306646865,-157.879927,0.00019735,2]
[408245648,1773306646874,-151.0,0.00019735,2]
[408245649,1773306646883,-171.321703,0.00019735,2]
[408245650,1773306646891,-542.027702,0.00019735,2]
[408245651,1773306646900,-542.027702,0.00019735,2]
[408245652,1773306646909,-542.027702,0.00019735,2]
[408245653,1773306646918,-542.027702,0.00019735,2]
[408245654,1773306646927,-151.0,0.00019735,2]
[408245655,1773306646935,-262.646111,0.00019735,2]
[408245656,1773306646944,-513.50002,0.00019735,2]
[408245657,1773306646953,-513.50002,0.00019735,2]
[408245658,1773306646961,-513.50002,0.00019735,2]
[408245659,1773306646970,-513.50002,0.00019735,2]
[408245660,1773306646979,-151.0,0.00019735,2]
[408245661,1773306646988,-283.875337,0.00019735,2]
[408245662,1773306646997,-283.875337,0.00019735,2]
[408245663,1773306647006,-283.875337,0.00019735,2]
[408245664,1773306647015,-151.0,0.00019735,2]
[408245665,1773306647024,-283.875337,0.00019735,2]
[408245666,1773306647033,-163.247951,0.00019735,2]
[408245667,1773306647042,-151.0,0.00019735,2]
[408245668,1773306647051,-348.43,0.0001975,2]
[408245669,1773306647059,-150.0,0.00019773,2]
[408245670,1773306647069,-150.0,0.00019773,2]
[408245671,1773306647077,-150.0,0.00019773,2]
[408245672,1773306647086,-150.0,0.00019773,2]
[408245673,1773306647095,-150.0,0.00019781,2]
[408245674,1773306647104,-150.0,0.00019781,2]
[408245675,1773306647113,-150.0,0.00019781,2]
[408245676,1773306647122,-150.0,0.00019781,2]
[408245677,1773306647131,-150.0,0.00019781,2]
[408245678,1773306647140,-150.0,0.00019781,2]
[408245679,1773306647150,-150.0,0.00019781,2]
[408245680,1773306647159,-150.0,0.00019781,2]
[408245681,1773306647168,-150.0,0.00019781,2]
[408245682,1773306647177,-150.0,0.00019781,2]
[408245683,1773306647186,-150.0,0.00019781,2]
[408245684,1773306647195,-150.0,0.00019781,2]
[408245685,1773306647205,-150.0,0.00019781,2]
[408245686,1773306647214,-150.0,0.00019781,2]
[408245687,1773306647224,-150.0,0.00019781,2]
[408245688,1773306647233,-150.0,0.00019781,2]
[408245689,1773306647242,-150.0,0.00019781,2]
[408245690,1773306647251,-150.0,0.00019781,2]
[408245691,1773306647260,-150.0,0.00019781,2]
[408245692,1773306647269,-150.0,0.00019781,2]
[408245693,1773306647278,-500.0,0.00019781,2]
[408245694,1773306647287,-150.0,0.00019781,2]
[408245695,1773306647298,-455.47206266,0.00019781,2]
[408245696,1773306647307,-150.0,0.00019781,2]
[408245697,1773306647317,-150.0,0.00019781,2]
[408245698,1773306647326,-150.0,0.00019781,2]
[408245699,1773306647335,-500.0,0.00019781,2]
[408245700,1773306647345,-611.46837653,0.00019781,2]
[408245701,1773306647354,-482.0,0.00019781,2]
[408245702,1773306647363,-150.0,0.00019781,2]
[408245703,1773306647372,-8220.74231838,0.00019784,2]
[408245704,1773306647381,-277.15431288,0.00019793,2]
[408245705,1773306647391,-166.66,0.00019793,2]
[408245706,1773306647400,-291.55498,0.00019799,2]
[408245707,1773306647410,-291.55498,0.00019799,2]
[408245708,1773306647419,-291.55498,0.00019799,2]
[408245709,1773306647428,-291.55498,0.00019799,2]
[408245710,1773306647437,-156.503475,0.00019799,2]
[408245711,1773306647446,-151.0,0.00019799,2]
[408245712,1773306647455,-417.541471,0.00019799,2]
[408245713,1773306647464,-417.541471,0.00019799,2]
[408245714,1773306647473,-417.541471,0.00019799,2]
[408245715,1773306647482,-417.541471,0.00019799,2]
[408245716,1773306647491,-417.541471,0.00019799,2]
[408245717,1773306647501,-417.541471,0.00019799,2]
[408245718,1773306647514,-417.541471,0.00019799,2]
[408245719,1773306647525,-417.541471,0.00019799,2]
[408245720,1773306647534,-161.063896,0.00019799,2]
[408245721,1773306647543,-151.0,0.00019799,2]
[408245722,1773306647552,-616.30531139,0.00019818,2]
[408245723,1773306647561,-1460.51048743,0.00019818,2]
[408245724,1773306647570,-500.0,0.00019834,2]
[408245725,1773306647579,-500.0,0.00019834,2]
[408245726,1773306647587,-500.0,0.00019834,2]
[408245727,1773306647596,-500.0,0.00019834,2]
[408245728,1773306647606,-500.0,0.00019834,2]
[408245729,1773306647615,-266863.01366379,0.00019835,2]
[408245731,1773306934386,161831.65080874,0.0002,120]
[408245732,1773306934408,38118.34919126,0.0002,120]
[408245737,1773307307189,-250.0,0.00015,2]
[408245738,1773307340606,957.00532779,9.4e-05,2]
[408245739,1773307342295,500.0,9.4e-05,2]
[408245740,1773307342766,500.0,9.4e-05,2]
[408245741,1773307343268,500.0,9.4e-05,2]
[408245742,1773307343729,500.0,9.4e-05,2]
[408245743,1773307343754,500.0,9.4e-05,2]
[408245744,1773307381197,300.0,0.00014999,2]
[408245745,1773307413302,967.0,0.00014999,2]
[408245746,1773307443066,300.0,0.00014999,2]
[408245747,1773307501201,300.0,0.00014999,2]
[408245748,1773307501472,1200.0,0.00014999,2]
[408245750,1773307554164,-423.12860994,0.00015,30]
[408245751,1773307554194,-509.03526404,0.00015,30]
[408245752,1773307554222,-500.0,0.00015,30]
[408245753,1773307554248,-500.0,0.00015,30]
[408245754,1773307554492,-500.0,0.00015,30]
[408245755,1773307554519,-500.0,0.00015,30]
[408245756,1773307554546,-500.0,0.00015,30]
[408245757,1773307554572,-500.0,0.00015,30]
[408245758,1773307554598,-500.0,0.00015,30]
[408245759,1773307554624,-200.0,0.000158,2]
[408245760,1773307560364,-1680.0,0.00016499,2]
[408245761,1773307560397,-250.0,0.000165,2]
[408245762,1773307560430,-250.0,0.000165,2]
[408245763,1773307560459,-600.0,0.000165,2]
[408245764,1773307560488,-300.0,0.000165,2]
[408245765,1773307560516,-195.18713969,0.000165,2]
[408245766,1773307560546,-527.0,0.00017,2]
[408245767,1773307560575,-440.81,0.0001761,2]
[408245768,1773307560602,-274.61,0.00017672,2]
[408245769,1773307560629,-250.0,0.0001786,2]
[408245770,1773307563048,-500.0,0.0001788,2]
[408245771,1773307563086,-786.27346798,0.000179,2]
[408245772,1773307563123,-786.273468,0.00018089,2]
[408245773,1773307563161,-2120.02612804,0.00018094,2]
[408245774,1773307635674,500.0,0.00015,30]
[408245775,1773307636378,612.02105801,0.0001,2]
[408245776,1773307649932,500.0,0.00015,30]
[408245777,1773307687744,262.0,7.945e-05,2]
[408245778,1773307748168,200.0,7.945e-05,2]
[408245779,1773307770127,-527.6671,0.00017,2]
[408245780,1773307770149,-511.99002,0.00017,2]
[408245783,1773307831877,-172.24095294,0.00018021,2]
[408245784,1773307831886,-304.0,0.00018021,2]
[408245785,1773307831895,-4000.0,0.00018021,2]
[408245786,1773307831904,-253.85026905,0.00018021,2]
[408245787,1773307831914,-253.85026905,0.00018032,2]
[408245788,1773307831923,-253.85026905,0.00018044,2]
[408245789,1773307831933,-253.85026905,0.00018055,2]
[408245790,1773307831942,-1614.86387196,0.00018094,2]
[408245791,1773307831951,-289.41620819,0.00018121,2]
[408245792,1773307831960,-2000.0,0.00018155,2]
[408245793,1773307831969,-1200.0,0.00018188,2]
[408245794,1773307831978,-300.0,0.00018188,2]
[408245795,1773307831991,-1554.65,0.00018189,2]
[408245796,1773307832001,-1136.12374983,0.00018189,2]
[408245797,1773307832012,-286.93625017,0.00018189,2]